[Event "Titled Tuesday Blitz September 28 2021"]
[White "Gallegos Diaz, Carlos Alberto"]
[Black "Manafov, Vugar"]
[WhiteFideId "3900886"]
[BlackFideId "13410814"]
[WhiteElo "2362"]
[BlackElo "2274"]
[Result "0-1"]
[Round "01"]
[TimeControl "180+1"]
[Date "2021.09.28"]
[WhiteClock "0:00:07"]
[BlackClock "0:01:13"]

1. e4 {[%clk 0:02:58]}  Nf6 {[%clk 0:02:59]} 2. d3 {[%clk 0:02:58]}  d5 {[%clk 0:02:58]} 3. Nd2 {[%clk 0:02:58]}  e5 {[%clk 0:02:57]} 4. Ngf3 {[%clk 0:02:58]}  Nbd7 {[%clk 0:02:57]} 5. Be2 {[%clk 0:02:58]}  dxe4 {[%clk 0:02:57]} 6. dxe4 {[%clk 0:02:59]}  Be7 {[%clk 0:02:56]} 7. O-O {[%clk 0:02:59]}  O-O {[%clk 0:02:57]} 8. c3 {[%clk 0:02:59]}  c6 {[%clk 0:02:57]} 9. Re1 {[%clk 0:02:59]}  Qc7 {[%clk 0:02:57]} 10. Qc2 {[%clk 0:02:59]}  Re8 {[%clk 0:02:57]} 11. b4 {[%clk 0:02:59]}  a5 {[%clk 0:02:57]} 12. Rb1 {[%clk 0:02:49]}  axb4 {[%clk 0:02:55]} 13. cxb4 {[%clk 0:02:50]}  Nf8 {[%clk 0:02:53]} 14. Nc4 {[%clk 0:02:48]}  Ng6 {[%clk 0:02:47]} 15. h3 {[%clk 0:02:41]}  b5 {[%clk 0:02:37]} 16. Ne3 {[%clk 0:02:38]}  Be6 {[%clk 0:02:30]} 17. a3 {[%clk 0:02:38]}  Qb7 {[%clk 0:02:23]} 18. Nf5 {[%clk 0:02:37]}  Bf8 {[%clk 0:02:23]} 19. Bb2 {[%clk 0:02:35]}  Nd7 {[%clk 0:02:13]} 20. Rbc1 {[%clk 0:02:33]}  Rac8 {[%clk 0:02:10]} 21. Ng5 {[%clk 0:02:30]}  Nf4 {[%clk 0:02:04]} 22. Bf1 {[%clk 0:02:24]}  g6 {[%clk 0:01:59]} 23. Nxe6 {[%clk 0:02:13]}  Nxe6 {[%clk 0:02:00]} 24. Ne3 {[%clk 0:02:09]}  Nd4 {[%clk 0:02:00]} 25. Qd1 {[%clk 0:01:55]}  Bg7 {[%clk 0:01:59]} 26. f4 {[%clk 0:01:27]}  exf4 {[%clk 0:01:51]} 27. Bxd4 {[%clk 0:01:08]}  Bxd4 {[%clk 0:01:52]} 28. Qxd4 {[%clk 0:01:07]}  fxe3 {[%clk 0:01:52]} 29. Rxe3 {[%clk 0:01:05]}  Ne5 {[%clk 0:01:53]} 30. Rec3 {[%clk 0:01:01]}  Rcd8 {[%clk 0:01:53]} 31. Qe3 {[%clk 0:01:00]}  Qd7 {[%clk 0:01:51]} 32. Be2 {[%clk 0:00:38]}  Qd2 {[%clk 0:01:47]} 33. Kf2 {[%clk 0:00:27]}  h5 {[%clk 0:01:41]} 34. Qxd2 {[%clk 0:00:19]}  Rxd2 {[%clk 0:01:42]} 35. Ke3 {[%clk 0:00:20]}  Red8 {[%clk 0:01:41]} 36. R1c2 {[%clk 0:00:18]}  Rxc2 {[%clk 0:01:39]} 37. Rxc2 {[%clk 0:00:18]}  Kf8 {[%clk 0:01:39]} 38. Rc5 {[%clk 0:00:18]}  f6 {[%clk 0:01:39]} 39. a4 {[%clk 0:00:19]}  bxa4 {[%clk 0:01:37]} 40. Ra5 {[%clk 0:00:19]}  Ke7 {[%clk 0:01:35]} 41. Rxa4 {[%clk 0:00:19]}  Rb8 {[%clk 0:01:35]} 42. Ra7+ {[%clk 0:00:16]}  Kd6 {[%clk 0:01:34]} 43. Ra4 {[%clk 0:00:12]}  h4 {[%clk 0:01:34]} 44. Kd4 {[%clk 0:00:12]}  g5 {[%clk 0:01:30]} 45. Kc3 {[%clk 0:00:12]}  Ng6 {[%clk 0:01:28]} 46. Ra6 {[%clk 0:00:11]}  Nf4 {[%clk 0:01:26]} 47. Bf1 {[%clk 0:00:11]}  Rc8 {[%clk 0:01:26]} 48. b5 {[%clk 0:00:10]}  Kc5 {[%clk 0:01:24]} 49. b6 {[%clk 0:00:10]}  Rb8 {[%clk 0:01:24]} 50. Ra5+ {[%clk 0:00:08]}  Kxb6 {[%clk 0:01:24]} 51. Rf5 {[%clk 0:00:09]}  Rf8 {[%clk 0:01:23]} 52. e5 {[%clk 0:00:09]}  Kc7 {[%clk 0:01:15]} 53. exf6 {[%clk 0:00:08]}  Rxf6 {[%clk 0:01:13]} 54. Rxg5 {[%clk 0:00:07]}  Nd5+ {[%clk 0:01:13]} 0-1


[Site "https://www.chess.com"]

[Event "Titled Tuesday Blitz September 28 2021"]
[White "Garv Gaur"]
[Black "Bortnyk, Olexandr"]
[WhiteFideId "45030839"]
[BlackFideId "14120828"]
[WhiteElo "1950"]
[BlackElo "2723"]
[Result "0-1"]
[Round "01"]
[TimeControl "180+1"]
[Date "2021.09.28"]
[WhiteClock "0:01:21"]
[BlackClock "0:00:06"]

1. d4 {[%clk 0:03:00]}  f5 {[%clk 0:02:57]} 2. Nf3 {[%clk 0:03:01]}  Nf6 {[%clk 0:02:57]} 3. c4 {[%clk 0:03:02]}  d6 {[%clk 0:02:57]} 4. g3 {[%clk 0:03:02]}  g6 {[%clk 0:02:57]} 5. Bg2 {[%clk 0:03:03]}  Bg7 {[%clk 0:02:57]} 6. O-O {[%clk 0:03:03]}  O-O {[%clk 0:02:57]} 7. Nc3 {[%clk 0:03:04]}  c6 {[%clk 0:02:57]} 8. d5 {[%clk 0:03:04]}  e5 {[%clk 0:02:56]} 9. dxe6 {[%clk 0:03:02]}  Bxe6 {[%clk 0:02:57]} 10. b3 {[%clk 0:02:48]}  Ne4 {[%clk 0:02:54]} 11. Nxe4 {[%clk 0:02:46]}  fxe4 {[%clk 0:02:55]} 12. Nd4 {[%clk 0:02:45]}  Bf7 {[%clk 0:02:54]} 13. Rb1 {[%clk 0:02:42]}  d5 {[%clk 0:02:54]} 14. Ba3 {[%clk 0:02:41]}  Re8 {[%clk 0:02:50]} 15. cxd5 {[%clk 0:02:40]}  Bxd5 {[%clk 0:02:50]} 16. Nc2 {[%clk 0:02:39]}  Nd7 {[%clk 0:02:45]} 17. Ne3 {[%clk 0:02:39]}  Ne5 {[%clk 0:02:23]} 18. Bb2 {[%clk 0:02:36]}  Qa5 {[%clk 0:02:17]} 19. Qc2 {[%clk 0:02:34]}  Rad8 {[%clk 0:01:53]} 20. Bc3 {[%clk 0:02:33]}  Qa6 {[%clk 0:01:52]} 21. Rfd1 {[%clk 0:02:32]}  Rd7 {[%clk 0:01:16]} 22. Rd2 {[%clk 0:02:29]}  Bh6 {[%clk 0:01:05]} 23. Rbd1 {[%clk 0:02:25]}  Bxe3 {[%clk 0:01:05]} 24. fxe3 {[%clk 0:02:26]}  Ng4 {[%clk 0:01:02]} 25. Bd4 {[%clk 0:02:25]}  Rf7 {[%clk 0:01:02]} 26. h3 {[%clk 0:02:22]}  Nf6 {[%clk 0:00:54]} 27. g4 {[%clk 0:02:22]}  Qa5 {[%clk 0:00:51]} 28. Rf1 {[%clk 0:02:21]}  Nd7 {[%clk 0:00:51]} 29. Rxf7 {[%clk 0:02:20]}  Kxf7 {[%clk 0:00:52]} 30. Rd1 {[%clk 0:02:20]}  Kg8 {[%clk 0:00:48]} 31. Rf1 {[%clk 0:02:20]}  Qc7 {[%clk 0:00:46]} 32. Qd1 {[%clk 0:02:19]}  a6 {[%clk 0:00:43]} 33. Qe1 {[%clk 0:02:18]}  Ne5 {[%clk 0:00:38]} 34. Qh4 {[%clk 0:02:18]}  Qe7 {[%clk 0:00:37]} 35. Qh6 {[%clk 0:02:11]}  Qg7 {[%clk 0:00:29]} 36. Qf4 {[%clk 0:02:07]}  Qe7 {[%clk 0:00:26]} 37. Qh6 {[%clk 0:02:06]}  Qg7 {[%clk 0:00:19]} 38. Qf4 {[%clk 0:02:06]}  b5 {[%clk 0:00:16]} 39. b4 {[%clk 0:02:04]}  Qe7 {[%clk 0:00:15]} 40. Qh6 {[%clk 0:02:03]}  Qxb4 {[%clk 0:00:14]} 41. Qg5 {[%clk 0:01:46]}  Qe7 {[%clk 0:00:14]} 42. Qh6 {[%clk 0:01:47]}  a5 {[%clk 0:00:12]} 43. g5 {[%clk 0:01:45]}  a4 {[%clk 0:00:09]} 44. Rf6 {[%clk 0:01:45]}  b4 {[%clk 0:00:08]} 45. h4 {[%clk 0:01:42]}  Ng4 {[%clk 0:00:05]} 46. Rxg6+ {[%clk 0:01:41]}  hxg6 {[%clk 0:00:06]} 47. Qh8+ {[%clk 0:01:41]}  Kf7 {[%clk 0:00:07]} 48. Qh7+ {[%clk 0:01:31]}  Ke6 {[%clk 0:00:07]} 49. Qxg6+ {[%clk 0:01:32]}  Kd7 {[%clk 0:00:08]} 50. Bh3 {[%clk 0:01:32]}  Be6 {[%clk 0:00:08]} 51. Qxe4 {[%clk 0:01:31]}  Qd6 {[%clk 0:00:08]} 52. Bxg4 {[%clk 0:01:30]}  Qg3+ {[%clk 0:00:08]} 53. Kh1 {[%clk 0:01:23]}  Qxg4 {[%clk 0:00:07]} 54. Qh7+ {[%clk 0:01:23]}  Re7 {[%clk 0:00:07]} 55. Qh8 {[%clk 0:01:21]}  Bd5+ {[%clk 0:00:06]} 0-1


[Site "https://www.chess.com"]

[Event "Titled Tuesday Blitz September 28 2021"]
[White "Gennady_Kozlov"]
[Black "Onyshchuk, Volodymyr"]
[BlackFideId "14114038"]
[WhiteElo "2434"]
[BlackElo "2603"]
[Result "0-1"]
[Round "01"]
[TimeControl "180+1"]
[Date "2021.09.28"]
[WhiteClock "0:01:11"]
[BlackClock "0:00:19"]

1. b3 {[%clk 0:02:57]}  e5 {[%clk 0:02:55]} 2. Bb2 {[%clk 0:02:57]}  Nc6 {[%clk 0:02:56]} 3. e3 {[%clk 0:02:57]}  g6 {[%clk 0:02:55]} 4. f4 {[%clk 0:02:57]}  Bg7 {[%clk 0:02:53]} 5. Nf3 {[%clk 0:02:56]}  d6 {[%clk 0:02:39]} 6. Bb5 {[%clk 0:02:55]}  Ne7 {[%clk 0:02:37]} 7. fxe5 {[%clk 0:02:53]}  O-O {[%clk 0:02:35]} 8. O-O {[%clk 0:02:53]}  dxe5 {[%clk 0:02:32]} 9. Bxc6 {[%clk 0:02:52]}  Nxc6 {[%clk 0:02:31]} 10. e4 {[%clk 0:02:53]}  f5 {[%clk 0:02:25]} 11. d3 {[%clk 0:02:53]}  Be6 {[%clk 0:02:05]} 12. Nbd2 {[%clk 0:02:52]}  Qe7 {[%clk 0:02:04]} 13. Nc4 {[%clk 0:02:50]}  Bxc4 {[%clk 0:01:59]} 14. dxc4 {[%clk 0:02:46]}  Rad8 {[%clk 0:01:58]} 15. Qe2 {[%clk 0:02:46]}  Nd4 {[%clk 0:01:46]} 16. Bxd4 {[%clk 0:02:39]}  exd4 {[%clk 0:01:46]} 17. Rae1 {[%clk 0:02:39]}  Rfe8 {[%clk 0:01:41]} 18. e5 {[%clk 0:02:37]}  Bh6 {[%clk 0:01:40]} 19. Qd3 {[%clk 0:02:35]}  Be3+ {[%clk 0:01:40]} 20. Kh1 {[%clk 0:02:35]}  c5 {[%clk 0:01:37]} 21. c3 {[%clk 0:02:28]}  Rf8 {[%clk 0:01:36]} 22. cxd4 {[%clk 0:02:26]}  cxd4 {[%clk 0:01:36]} 23. Rxe3 {[%clk 0:02:23]}  dxe3 {[%clk 0:01:36]} 24. Qxe3 {[%clk 0:02:24]}  b6 {[%clk 0:01:31]} 25. h4 {[%clk 0:02:19]}  Qc5 {[%clk 0:01:22]} 26. Qh6 {[%clk 0:02:15]}  Rd7 {[%clk 0:01:22]} 27. e6 {[%clk 0:02:11]}  Re7 {[%clk 0:01:18]} 28. h5 {[%clk 0:02:04]}  Rg7 {[%clk 0:00:58]} 29. Rd1 {[%clk 0:01:59]}  gxh5 {[%clk 0:00:39]} 30. Rd7 {[%clk 0:01:31]}  Rxd7 {[%clk 0:00:38]} 31. exd7 {[%clk 0:01:32]}  Qe7 {[%clk 0:00:36]} 32. Qc6 {[%clk 0:01:31]}  Rd8 {[%clk 0:00:35]} 33. Qd5+ {[%clk 0:01:31]}  Qf7 {[%clk 0:00:35]} 34. Qe5 {[%clk 0:01:19]}  Rxd7 {[%clk 0:00:35]} 35. Ng5 {[%clk 0:01:19]}  Qe7 {[%clk 0:00:20]} 36. Ne6 {[%clk 0:01:11]}  Rd1+ {[%clk 0:00:19]} 37. Kh2 {[%clk 0:01:11]}  Qh4# {[%clk 0:00:19]} 0-1


[Site "https://www.chess.com"]

[Event "Titled Tuesday Blitz September 28 2021"]
[White "Gevorgyan, Maria"]
[Black "Maze, Sebastien"]
[WhiteFideId "13300270"]
[BlackFideId "613762"]
[WhiteElo "2210"]
[BlackElo "2462"]
[Result "0-1"]
[Round "01"]
[TimeControl "180+1"]
[Date "2021.09.28"]
[WhiteClock "0:01:16"]
[BlackClock "0:01:29"]

1. e4 {[%clk 0:03:00]}  c5 {[%clk 0:02:56]} 2. Nc3 {[%clk 0:03:00]}  Nc6 {[%clk 0:02:55]} 3. Bb5 {[%clk 0:02:56]}  Nd4 {[%clk 0:02:54]} 4. Bc4 {[%clk 0:02:55]}  e6 {[%clk 0:02:52]} 5. Nge2 {[%clk 0:02:54]}  Ne7 {[%clk 0:02:46]} 6. Nxd4 {[%clk 0:02:54]}  cxd4 {[%clk 0:02:46]} 7. Ne2 {[%clk 0:02:54]}  Nc6 {[%clk 0:02:32]} 8. d3 {[%clk 0:02:53]}  a6 {[%clk 0:02:28]} 9. a4 {[%clk 0:02:52]}  Bc5 {[%clk 0:02:21]} 10. O-O {[%clk 0:02:45]}  Qc7 {[%clk 0:02:20]} 11. f4 {[%clk 0:02:37]}  b6 {[%clk 0:02:15]} 12. Ng3 {[%clk 0:02:35]}  Bb7 {[%clk 0:02:10]} 13. Qg4 {[%clk 0:02:30]}  g6 {[%clk 0:02:09]} 14. f5 {[%clk 0:02:28]}  Ne5 {[%clk 0:02:02]} 15. Qf4 {[%clk 0:02:04]}  Bd6 {[%clk 0:01:51]} 16. Bb3 {[%clk 0:01:48]}  Nxd3 {[%clk 0:01:39]} 17. Qh4 {[%clk 0:01:47]}  Nxc1 {[%clk 0:01:37]} 18. fxe6 {[%clk 0:01:43]}  dxe6 {[%clk 0:01:34]} 19. Raxc1 {[%clk 0:01:38]}  Be7 {[%clk 0:01:33]} 20. Qh6 {[%clk 0:01:34]}  Qe5 {[%clk 0:01:33]} 21. Rf2 {[%clk 0:01:28]}  Bg5 {[%clk 0:01:32]} 22. Qh3 {[%clk 0:01:20]}  Bxc1 {[%clk 0:01:30]} 23. Ne2 {[%clk 0:01:16]}  Be3 {[%clk 0:01:29]} 0-1


[Site "https://www.chess.com"]

[Event "Titled Tuesday Blitz September 28 2021"]
[White "Havanecz, Bianka"]
[Black "Rozman, Levy"]
[WhiteFideId "704814"]
[BlackFideId "2039877"]
[WhiteElo "2378"]
[BlackElo "2376"]
[Result "0-1"]
[Round "01"]
[TimeControl "180+1"]
[Date "2021.09.28"]
[WhiteClock "0:00:01"]
[BlackClock "0:00:06"]

1. d4 {[%clk 0:02:58]}  g6 {[%clk 0:02:57]} 2. c4 {[%clk 0:02:58]}  Bg7 {[%clk 0:02:57]} 3. Nc3 {[%clk 0:02:55]}  c5 {[%clk 0:02:57]} 4. e3 {[%clk 0:02:54]}  Nf6 {[%clk 0:02:53]} 5. Nf3 {[%clk 0:02:54]}  cxd4 {[%clk 0:02:53]} 6. exd4 {[%clk 0:02:54]}  d5 {[%clk 0:02:54]} 7. c5 {[%clk 0:02:45]}  O-O {[%clk 0:02:51]} 8. Be2 {[%clk 0:02:44]}  b6 {[%clk 0:02:48]} 9. cxb6 {[%clk 0:02:36]}  axb6 {[%clk 0:02:43]} 10. O-O {[%clk 0:02:35]}  Nc6 {[%clk 0:02:23]} 11. Re1 {[%clk 0:02:33]}  Bf5 {[%clk 0:02:15]} 12. Qb3 {[%clk 0:02:20]}  Na5 {[%clk 0:02:09]} 13. Qb5 {[%clk 0:02:18]}  Bd7 {[%clk 0:01:52]} 14. Qb4 {[%clk 0:02:18]}  e6 {[%clk 0:01:48]} 15. Ne5 {[%clk 0:02:15]}  Re8 {[%clk 0:01:44]} 16. Nxd7 {[%clk 0:02:12]}  Nxd7 {[%clk 0:01:40]} 17. Bb5 {[%clk 0:02:10]}  Bf8 {[%clk 0:01:38]} 18. Qa4 {[%clk 0:02:09]}  Nc4 {[%clk 0:01:32]} 19. Qd1 {[%clk 0:02:03]}  Nd6 {[%clk 0:01:30]} 20. Bd3 {[%clk 0:02:01]}  Bg7 {[%clk 0:01:30]} 21. Be3 {[%clk 0:01:59]}  Qe7 {[%clk 0:01:13]} 22. Rc1 {[%clk 0:01:42]}  Rec8 {[%clk 0:01:10]} 23. a3 {[%clk 0:01:42]}  Nc4 {[%clk 0:01:07]} 24. Qe2 {[%clk 0:01:09]}  Qd8 {[%clk 0:00:56]} 25. Nb5 {[%clk 0:00:54]}  Nxe3 {[%clk 0:00:46]} 26. Qxe3 {[%clk 0:00:47]}  Qe7 {[%clk 0:00:37]} 27. Bf1 {[%clk 0:00:40]}  h5 {[%clk 0:00:32]} 28. Rxc8+ {[%clk 0:00:39]}  Rxc8 {[%clk 0:00:31]} 29. Rc1 {[%clk 0:00:39]}  Qd8 {[%clk 0:00:29]} 30. Rxc8 {[%clk 0:00:35]}  Qxc8 {[%clk 0:00:30]} 31. Qc3 {[%clk 0:00:34]}  Qb8 {[%clk 0:00:30]} 32. g3 {[%clk 0:00:32]}  h4 {[%clk 0:00:30]} 33. a4 {[%clk 0:00:28]}  e5 {[%clk 0:00:26]} 34. dxe5 {[%clk 0:00:21]}  Nxe5 {[%clk 0:00:26]} 35. Bg2 {[%clk 0:00:20]}  h3 {[%clk 0:00:23]} 36. Bxh3 {[%clk 0:00:17]}  d4 {[%clk 0:00:22]} 37. Qb4 {[%clk 0:00:13]}  d3 {[%clk 0:00:20]} 38. Bf1 {[%clk 0:00:10]}  d2 {[%clk 0:00:19]} 39. Be2 {[%clk 0:00:07]}  Qd8 {[%clk 0:00:17]} 40. Qb3 {[%clk 0:00:07]}  Bf8 {[%clk 0:00:12]} 41. Nc3 {[%clk 0:00:07]}  Bc5 {[%clk 0:00:11]} 42. Ne4 {[%clk 0:00:06]}  Qd4 {[%clk 0:00:08]} 43. Nxc5 {[%clk 0:00:05]}  Qxc5 {[%clk 0:00:07]} 44. Qd1 {[%clk 0:00:05]}  Qb4 {[%clk 0:00:06]} 45. b3 {[%clk 0:00:04]}  Kg7 {[%clk 0:00:06]} 46. Kg2 {[%clk 0:00:04]}  f6 {[%clk 0:00:07]} 47. f4 {[%clk 0:00:04]}  Nc6 {[%clk 0:00:06]} 48. Kf2 {[%clk 0:00:02]}  Qd4+ {[%clk 0:00:06]} 49. Kf3 {[%clk 0:00:01]}  Qc3+ {[%clk 0:00:06]} 0-1


[Site "https://www.chess.com"]

[Event "Titled Tuesday Blitz September 28 2021"]
[White "Hess, Robert"]
[Black "Omariev, Maksim"]
[WhiteFideId "2022036"]
[BlackFideId "4193423"]
[WhiteElo "2557"]
[BlackElo "2449"]
[Result "0-1"]
[Round "01"]
[TimeControl "180+1"]
[Date "2021.09.28"]
[WhiteClock "0:00:05"]
[BlackClock "0:00:07"]

1. e4 {[%clk 0:03:00]}  c5 {[%clk 0:02:57]} 2. Nc3 {[%clk 0:03:01]}  d6 {[%clk 0:02:57]} 3. Nf3 {[%clk 0:03:01]}  a6 {[%clk 0:02:56]} 4. d4 {[%clk 0:03:01]}  cxd4 {[%clk 0:02:56]} 5. Nxd4 {[%clk 0:03:02]}  Nf6 {[%clk 0:02:57]} 6. Bg5 {[%clk 0:03:01]}  Nbd7 {[%clk 0:02:56]} 7. Qd2 {[%clk 0:03:00]}  b5 {[%clk 0:02:55]} 8. f3 {[%clk 0:02:56]}  Bb7 {[%clk 0:02:54]} 9. a4 {[%clk 0:02:55]}  b4 {[%clk 0:02:50]} 10. Na2 {[%clk 0:02:54]}  a5 {[%clk 0:02:48]} 11. Bb5 {[%clk 0:02:54]}  e6 {[%clk 0:02:34]} 12. c3 {[%clk 0:02:48]}  bxc3 {[%clk 0:02:27]} 13. Nxc3 {[%clk 0:02:39]}  Be7 {[%clk 0:02:13]} 14. Bc6 {[%clk 0:02:07]}  Qb6 {[%clk 0:02:02]} 15. Bxb7 {[%clk 0:02:06]}  Qxb7 {[%clk 0:02:02]} 16. Ndb5 {[%clk 0:02:03]}  O-O {[%clk 0:02:00]} 17. O-O {[%clk 0:02:01]}  Rfd8 {[%clk 0:01:53]} 18. Be3 {[%clk 0:01:39]}  Nb6 {[%clk 0:01:49]} 19. Qe2 {[%clk 0:01:20]}  Rac8 {[%clk 0:01:46]} 20. Rfd1 {[%clk 0:01:17]}  d5 {[%clk 0:01:41]} 21. e5 {[%clk 0:01:15]}  Nfd7 {[%clk 0:01:41]} 22. Bd4 {[%clk 0:01:14]}  Nc5 {[%clk 0:01:33]} 23. Bxc5 {[%clk 0:00:48]}  Bxc5+ {[%clk 0:01:27]} 24. Kh1 {[%clk 0:00:49]}  Bb4 {[%clk 0:01:10]} 25. Rd4 {[%clk 0:00:42]}  Qe7 {[%clk 0:00:54]} 26. Rg4 {[%clk 0:00:30]}  h5 {[%clk 0:00:41]} 27. Rd4 {[%clk 0:00:27]}  Qg5 {[%clk 0:00:30]} 28. f4 {[%clk 0:00:25]}  Qf5 {[%clk 0:00:27]} 29. Rf1 {[%clk 0:00:20]}  Rc4 {[%clk 0:00:26]} 30. Rxc4 {[%clk 0:00:19]}  Nxc4 {[%clk 0:00:27]} 31. Nd4 {[%clk 0:00:17]}  Qg4 {[%clk 0:00:21]} 32. Qxg4 {[%clk 0:00:14]}  hxg4 {[%clk 0:00:22]} 33. Nd1 {[%clk 0:00:12]}  Rc8 {[%clk 0:00:17]} 34. Rf2 {[%clk 0:00:09]}  Nb6 {[%clk 0:00:12]} 35. Rc2 {[%clk 0:00:09]}  Rxc2 {[%clk 0:00:10]} 36. Nxc2 {[%clk 0:00:10]}  Nxa4 {[%clk 0:00:11]} 37. b3 {[%clk 0:00:10]}  Nc5 {[%clk 0:00:09]} 38. Nd4 {[%clk 0:00:10]}  Kf8 {[%clk 0:00:04]} 39. g3 {[%clk 0:00:11]}  Ke7 {[%clk 0:00:04]} 40. Kg2 {[%clk 0:00:11]}  f6 {[%clk 0:00:04]} 41. Kf1 {[%clk 0:00:07]}  fxe5 {[%clk 0:00:04]} 42. Nc6+ {[%clk 0:00:08]}  Kd6 {[%clk 0:00:03]} 43. Nxe5 {[%clk 0:00:09]}  Nxb3 {[%clk 0:00:02]} 44. Nb2 {[%clk 0:00:08]}  Bc3 {[%clk 0:00:02]} 45. Ned3 {[%clk 0:00:05]}  Bxb2 {[%clk 0:00:02]} 46. Nxb2 {[%clk 0:00:06]}  Kc5 {[%clk 0:00:02]} 47. Ke2 {[%clk 0:00:07]}  Kb4 {[%clk 0:00:03]} 48. Nd3+ {[%clk 0:00:07]}  Kc3 {[%clk 0:00:03]} 49. Nf2 {[%clk 0:00:06]}  a4 {[%clk 0:00:04]} 50. Nd1+ {[%clk 0:00:06]}  Kc2 {[%clk 0:00:04]} 51. Ne3+ {[%clk 0:00:06]}  Kb2 {[%clk 0:00:04]} 52. Kd3 {[%clk 0:00:07]}  a3 {[%clk 0:00:05]} 53. Nd1+ {[%clk 0:00:07]}  Kb1 {[%clk 0:00:05]} 54. Nc3+ {[%clk 0:00:07]}  Kc1 {[%clk 0:00:05]} 55. Na2+ {[%clk 0:00:03]}  Kb2 {[%clk 0:00:06]} 56. Nb4 {[%clk 0:00:04]}  a2 {[%clk 0:00:06]} 57. Nxa2 {[%clk 0:00:04]}  Kxa2 {[%clk 0:00:06]} 58. Kc3 {[%clk 0:00:05]}  d4+ {[%clk 0:00:06]} 59. Kd3 {[%clk 0:00:05]}  Kb2 {[%clk 0:00:07]} 60. h4 {[%clk 0:00:05]}  gxh3 {[%clk 0:00:07]} 0-1


[Site "https://www.chess.com"]

[Event "Titled Tuesday Blitz September 28 2021"]
[White "Holt, Conrad"]
[Black "Patrascu, Catalin-Lucian"]
[WhiteFideId "2034387"]
[BlackFideId "1229052"]
[WhiteElo "2586"]
[BlackElo "2120"]
[Result "1-0"]
[Round "01"]
[TimeControl "180+1"]
[Date "2021.09.28"]
[WhiteClock "0:02:47"]
[BlackClock "0:02:32"]

1. d4 {[%clk 0:02:58]}  Nf6 {[%clk 0:02:59]} 2. c4 {[%clk 0:02:58]}  e6 {[%clk 0:02:58]} 3. Nc3 {[%clk 0:02:57]}  Bb4 {[%clk 0:02:56]} 4. Qc2 {[%clk 0:02:57]}  O-O {[%clk 0:02:55]} 5. e4 {[%clk 0:02:57]}  d5 {[%clk 0:02:54]} 6. e5 {[%clk 0:02:57]}  Ne4 {[%clk 0:02:54]} 7. Bd3 {[%clk 0:02:57]}  c5 {[%clk 0:02:54]} 8. Nf3 {[%clk 0:02:57]}  cxd4 {[%clk 0:02:46]} 9. Nxd4 {[%clk 0:02:58]}  Nd7 {[%clk 0:02:45]} 10. Bf4 {[%clk 0:02:57]}  Ndc5 {[%clk 0:02:42]} 11. O-O {[%clk 0:02:56]}  Bxc3 {[%clk 0:02:39]} 12. bxc3 {[%clk 0:02:55]}  Qh4 {[%clk 0:02:40]} 13. g3 {[%clk 0:02:53]}  Qh5 {[%clk 0:02:35]} 14. Be2 {[%clk 0:02:52]}  Qh3 {[%clk 0:02:31]} 15. f3 {[%clk 0:02:49]}  g5 {[%clk 0:02:32]} 16. fxe4 {[%clk 0:02:49]}  gxf4 {[%clk 0:02:32]} 17. Rxf4 {[%clk 0:02:49]}  Nxe4 {[%clk 0:02:32]} 18. Rh4 {[%clk 0:02:47]} 1-0


[Site "https://www.chess.com"]

[Event "Titled Tuesday Blitz September 28 2021"]
[White "Ibrahimli, Murad"]
[Black "Estrada Nieto, Julian"]
[WhiteFideId "13410229"]
[BlackFideId "5101018"]
[WhiteElo "2109"]
[BlackElo "2270"]
[Result "1/2-1/2"]
[Round "01"]
[TimeControl "180+1"]
[Date "2021.09.28"]
[WhiteClock "0:00:29"]
[BlackClock "0:00:14"]

1. Nf3 {[%clk 0:03:00]}  d5 {[%clk 0:02:58]} 2. c4 {[%clk 0:02:59]}  d4 {[%clk 0:02:57]} 3. g3 {[%clk 0:02:58]}  Nc6 {[%clk 0:02:56]} 4. Bg2 {[%clk 0:02:58]}  e5 {[%clk 0:02:54]} 5. d3 {[%clk 0:02:58]}  Nf6 {[%clk 0:02:54]} 6. O-O {[%clk 0:02:58]}  Be7 {[%clk 0:02:53]} 7. Na3 {[%clk 0:02:58]}  O-O {[%clk 0:02:52]} 8. Nc2 {[%clk 0:02:59]}  a5 {[%clk 0:02:49]} 9. b3 {[%clk 0:02:52]}  Re8 {[%clk 0:02:47]} 10. a3 {[%clk 0:02:47]}  Bg4 {[%clk 0:02:43]} 11. Rb1 {[%clk 0:02:45]}  Qd7 {[%clk 0:02:23]} 12. b4 {[%clk 0:02:41]}  axb4 {[%clk 0:02:23]} 13. axb4 {[%clk 0:02:42]}  e4 {[%clk 0:02:19]} 14. b5 {[%clk 0:02:35]}  exf3 {[%clk 0:02:05]} 15. bxc6 {[%clk 0:02:29]}  fxe2 {[%clk 0:01:53]} 16. cxd7 {[%clk 0:02:25]}  exd1=Q {[%clk 0:01:51]} 17. dxe8=Q+ {[%clk 0:02:24]}  Rxe8 {[%clk 0:01:51]} 18. Rxd1 {[%clk 0:02:24]}  Bxd1 {[%clk 0:01:51]} 19. Nxd4 {[%clk 0:02:24]}  Bc5 {[%clk 0:01:43]} 20. Be3 {[%clk 0:02:23]}  Bxd4 {[%clk 0:01:38]} 21. Bxd4 {[%clk 0:02:23]}  Be2 {[%clk 0:01:36]} 22. Bxf6 {[%clk 0:02:09]}  gxf6 {[%clk 0:01:27]} 23. Rxb7 {[%clk 0:02:09]}  Bxd3 {[%clk 0:01:26]} 24. Bd5 {[%clk 0:02:10]}  Re7 {[%clk 0:01:04]} 25. Kg2 {[%clk 0:02:07]}  Kg7 {[%clk 0:01:00]} 26. g4 {[%clk 0:02:05]}  f5 {[%clk 0:00:59]} 27. h3 {[%clk 0:01:58]}  fxg4 {[%clk 0:00:58]} 28. hxg4 {[%clk 0:01:59]}  Kf6 {[%clk 0:00:56]} 29. Kg3 {[%clk 0:01:58]}  Ke5 {[%clk 0:00:53]} 30. Rb8 {[%clk 0:01:01]}  Kd4 {[%clk 0:00:45]} 31. Rd8 {[%clk 0:00:59]}  Kc5 {[%clk 0:00:25]} 32. Bxf7 {[%clk 0:00:57]}  Rxf7 {[%clk 0:00:20]} 33. Rxd3 {[%clk 0:00:57]}  Kxc4 {[%clk 0:00:20]} 34. Rd1 {[%clk 0:00:57]}  c5 {[%clk 0:00:20]} 35. f4 {[%clk 0:00:56]}  Kb3 {[%clk 0:00:19]} 36. Rd8 {[%clk 0:00:42]}  c4 {[%clk 0:00:19]} 37. Rb8+ {[%clk 0:00:42]}  Kc2 {[%clk 0:00:18]} 38. Rc8 {[%clk 0:00:43]}  c3 {[%clk 0:00:18]} 39. f5 {[%clk 0:00:43]}  Kd2 {[%clk 0:00:18]} 40. Rd8+ {[%clk 0:00:42]}  Kc1 {[%clk 0:00:18]} 41. Kf4 {[%clk 0:00:42]}  c2 {[%clk 0:00:18]} 42. g5 {[%clk 0:00:41]}  Rb7 {[%clk 0:00:16]} 43. g6 {[%clk 0:00:27]}  hxg6 {[%clk 0:00:15]} 44. fxg6 {[%clk 0:00:28]}  Kb1 {[%clk 0:00:15]} 45. Rc8 {[%clk 0:00:28]}  c1=Q+ {[%clk 0:00:15]} 46. Rxc1+ {[%clk 0:00:28]}  Kxc1 {[%clk 0:00:15]} 47. Kf5 {[%clk 0:00:29]}  Kd2 {[%clk 0:00:15]} 48. Kf6 {[%clk 0:00:28]}  Kd3 {[%clk 0:00:15]} 49. g7 {[%clk 0:00:29]}  Rb8 {[%clk 0:00:14]} 50. Kf7 {[%clk 0:00:29]}  Kd4 {[%clk 0:00:14]} 51. g8=Q {[%clk 0:00:28]}  Rxg8 {[%clk 0:00:14]} 52. Kxg8 {[%clk 0:00:29]} 1/2-1/2


[Site "https://www.chess.com"]